Workbook

Sheet Bila D
A3: Carl Zeiss Meditec AG
A4: Konzern-Bilanz (IFRS) zum 31.12.2015
I6: Anhang | K6: 2015-12-31 | M6: 2015-09-30
K7: Tsd. € | M7: Tsd. €
B9: AKTIVA
B10: Langfristige Vermögenswerte
B11: Geschäfts- oder Firmenwert | I11: (2e) (10) | K11: 166119 | M11: 164345
B12: Sonstige immaterielle Vermögenswerte | I12: (2f) (11) | K12: 46107 | M12: 45365
B13: Sachanlagen | I13: (2g) (12) | K13: 66960 | M13: 67381
B14: At-Equity Beteiligungen | I14: (15) | K14: 0 | M14: 0
B15: Ausleihungen an At-Equity Beteiligungen | K15: 0 | M15: 0
B16: Sonstige Ausleihungen | I16: (27) | K16: 2082 | M16: 1349
B17: Beteiligungen | K17: 124 | M17: 124
B18: Latente Ertragsteuern | I18: (2i) (13) | K18: 75300 | M18: 72985
B19: Langfristige Forderungen aus Lieferungen und Leistungen | I19: (16) | K19: 9284 | M19: 8919
B20: Sonstige langfristige Vermögenswerte | I20: (2h) (14) | K20: 2452 | M20: 2524
K22: =SUM(K8:K21) -> 368428 | M22: =SUM(M8:M21) -> 362992
B23: Kurzfristige Vermögenswerte
B24: Vorräte | I24: (2j) (15) | K24: 204532 | M24: 189411
B25: Forderungen aus Lieferungen und Leistungen | I25: (16) | K25: 163614 | M25: 184817
B26: Forderungen gegen nahe stehende Unternehmen | I26: (2t) (32) | K26: 70536 | M26: 58900
B27: Forderungen aus Finanzausgleich | I27: (2t) (32) | K27: 296435 | M27: 301412
B28: Steuererstattungsansprüche | K28: 2938 | M28: 2224
B29: Sonstige kurzfristige finanzielle Vermögenswerte | I29: (2h) (17) | K29: 7210 | M29: 7336
B30: Sonstige kurzfristige nicht-finanzielle Vermögenswerte | I30: (18) | K30: 19006 | M30: 19157
B31: Wertpapiere | I31: (2i)
B32: Liquide Mittel mit Verfügungsbeschränkung | I32: (12)
B33: Zahlungsmittel und Zahlungsmitteläquivalente | I33: (2l) (19) | K33: 16132 | M33: 13041
K35: =SUM(K24:K33) -> 780403 | M35: =SUM(M24:M33) -> 776298
K36: =+K35+K22 -> 1148831 | M36: =+M35+M22 -> 1139290
B38: PASSIVA
B39: Eigenkapital
B40: Gezeichnetes Kapital | I40: (20) | K40: 81310 | M40: 81310
B41: Kapitalrücklage | I41: (20) | K41: 313863 | M41: 313863
B42: Gewinnrücklagen | I42: (20) | K42: 407624 | M42: 390903
B43: Sonstige Bestandteile des Eigenkapitals | I43: (2m) (20) | K43: -26881 | M43: -32218
B45: Eigenkapital ohne Anteile nicht-beherrschender Gesellschafter | K45: =SUM(K40:K43) -> 775916 | M45: =SUM(M40:M43) -> 753858
B46: Ausgleichsposten für Anteile nicht-beherrschender Gesellschafter | I46: (20) | K46: 45128 | M46: 43592
K48: =SUM(K45:K46) -> 821044 | M48: =SUM(M45:M46) -> 797450
B49: Langfristige Schulden
B50: Pensionsrückstellungen und ähnliche Verpflichtungen | I50: (2n) (21) | K50: 68076 | M50: 64865
B51: Andere langfristige Rückstellungen | I51: (2o) (22) | K51: 4605 | M51: 4467
B52: Langfristige finanzielle Verbindlichkeiten | I52: (23) | K52: 1232 | M52: 916
B53: Langfristige Leasingverbindlichkeiten | I53: (2k) (27) | K53: 8442 | M53: 8929
B54: Langfristige Verbindlichkeiten aus Ertragsteuern
B55: Sonstige langfristige nicht-finanzielle Verbindlichkeiten | K55: 6658 | M55: 7490
B56: Latente Ertragsteuern | I56: (2i) (13) | K56: 11807 | M56: 11783
K58: =SUM(K50:K57) -> 100820 | M58: =SUM(M50:M57) -> 98450
B59: Kurzfristige Schulden
B60: Kurzfristige Rückstellungen | I60: (2o) (22) | K60: 23791 | M60: 24360
B61: Kurzfristige abgegrenzte Verbindlichkeiten | I61: (24) | K61: 64575 | M61: 65447
B62: Kurzfristige finanzielle Verbindlichkeiten | I62: (2h) | K62: 11221 | M62: =3218+489 -> 3707
B63: Kurzfristiger Anteil langfristiger finanzieller Verbindlichkeiten | I63: (23)
B64: Kurzfristiger Anteil langfristiger Leasingverbindlichkeiten | I64: (2k) (27) | K64: 2909 | M64: 2806
B65: Verbindlichkeiten aus Lieferungen und Leistungen | K65: 34980 | M65: 42859
B66: Kurzfristige Verbindlichkeiten aus Ertragsteuern | K66: 5942 | M66: 6214
B67: Verbindlichkeiten gegenüber nahe stehenden Unternehmen | I67: (2t) (32) | K67: 11140 | M67: 23454
B68: Verbindlichkeiten aus Finanzausgleich | I68: (2t) (32) | K68: 34579 | M68: 36043
B69: Sonstige kurzfristige nicht-finanzielle Verbindlichkeiten | I69: (25) | K69: 37830 | M69: 38500
K71: =SUM(K60:K69) -> 226967 | M71: =SUM(M60:M69) -> 243390
K73: =+K71+K58+K48 -> 1148831 | M73: =+M71+M58+M48 -> 1139290
K74: =+K73-K36 -> 0 | M74: =+M73-M36 -> 0
B79: Der nachfolgende Konzernanhang ist integraler Bestandteil des ungeprüften Konzernabschlusses.

Sheet Bilanzanalyse (hidden)
A1: Abw. Dec./ Sep | C1: Begründung | D1: davon erklärt | E1: Differenz
A2: ='Bila D'!#REF! ->  | B2: Geschäfts- oder Firmenwert | C2: Zugang IMEX 7,432 Mio. | D2: =7432 -> 7432 | E2: =A2-D2 -> 
A3: ='Bila D'!#REF! ->  | B3: Immaterielle Vermögenswerte | C3: Zugang IMEX 5,551 Mio.
A4: ='Bila D'!#REF! ->  | B4: Sachanlagen | C4: Zugang CZM AG 4,0 Mio. vor Afa (hauptsächlich Olymp ca. 3,2 Mio.); Übernahme Mietgeräte bei CZM VG aus Umlaufvermögen (+1,2 Mio.)
A5: ='Bila D'!#REF! ->  | B5: Forderungen aus Lieferungen und Leistungen | C5: hierin enthalten 2,9 Mio. Alcon-Lizenzen, Cash-Zahlung erfolgt erst im Januar
A6: ='Bila D'!#REF! ->  | B6: Forderungen gegen nahe stehende Unternehmen | C6: v.a. Umsatzanstieg Q1 CZM AG (Umsatz je Quartal: GJ 10/11 --> 113 Mio., Q1 11/12 --> 141 Mio.)
A7: ='Bila D'!#REF! ->  | B7: Sonstige kurzfristige finanzielle Vermögenswerte | C7: Anstieg aus CZM Inc. aufgrund der Umgliederung der Kreditkartenforderungen von kurzf. Nicht-finanz. Vw in kurzf. Finanz. Vermögenswerte (+1,3 Mio.). Anstieg CZM AG (+0,3 Mio.) für Zinsabgrenzungen (COBA + HVB) | D7: =1300+300 -> 1600 | E7: =A7-D7 -> 
A8: ='Bila D'!#REF! ->  | B8: Sonstige kurzfristige nicht-finanzielle Vermögenswerte | C8: Kompensation des Umgliederungseffektes USA durch CZM F (+0,6 Mio., u.a. UST, ARAP), CZM AG (+0,4 Mio.)
A9: 1207 | B9: Andere langfristige Rückstellungen | C9: IMEX earn out Anteil +2,218 Mio.; Kompensation durch CZM AG (-915 TEUR ATZ, -142 TEUR Verbrauch ERA RST und sonstiges) | D9: =(2.218-0.915-0.142)*1000 -> 1161 | E9: 46
A10: ='Bila D'!#REF! ->  | B10: Kurzfristige Rückstellungen | C10: IMEX earn out Anteil +2,149 Mio., Abgrenzung KöSteuer +1,5 Mio. (CZM AG), RST für Gewährleistungen pauschal +0,55 Mio. (CZM AG), Konzernrückstellung Q1 für Projekttehmen +0,85 Mio., Auflösung RST für Bonuszahlung im Dezember + RST-Bildung für geschätzte Logistikosten (CZM Japan), Zuführung RST CZM Inc. für Ferien, Warenrückgabe und Gewährleistung | D10: =(2.149+1.5+0.55+0.85)*1000 -> 5049
A11: ='Bila D'!#REF! ->  | B11: Kurzfristige abgegrenzte Verbindlichkeiten | C11: Auszahlung Renumeration für FY 10/11 CZM VG -0,8 Mio. (hier auch Reduzierung RST für ausstehende Rechnung enthalten) und USA -3,1 Mio. (u.a. MBO-Bonus, Super-Bonus); z.T. Kompensation/ Anstieg durch unterjährige Rechnungsabgrenzungen + Risiken CZM AG +1,36 Mio. (davon 0,6 Mio. Konzern-RST bzw. 0,3 Mio. CZM-Verbundene, die im Konzern wieder eliminiert werden); CZM SAS + FCI -04 Mio. Rückgang Personalverbindlichkeiten aufgrund erfolgter Bonuszahlung im Dez 11 | D11: =(-0.8-3.1+1.36-0.3-0.4)*1000 -> -3240
A12: ='Bila D'!#REF! ->  | B12: Kurzfristige finanzielle Verbindlichkeiten | C12: Devisentermingeschäfte CZM AG +3,3 Mio. EUR, Reduzierung ausstehende Checks USA aufgrund von Lieferantenzahlungen -0,6 Mio. | D12: =(3.3-0.6)*1000 -> 2700
A13: ='Bila D'!#REF! ->  | B13: Verbindlichkeiten aus Lieferungen und Leistungen | C13: CZM AG: Umstellung Lieferantenzahlungen auf tägliche Zahlungen nach Fälligkeit ab Q1 2012 (-3,9 Mio.)
A14: ='Bila D'!#REF! ->  | B14: Sonstige kurzfristige nicht-finanzielle Verbindlichkeiten | C14: CZM AG: Lohnsteuerverbindlichkeiten +2,0 Mio. (Prämienzahlung 31.12.) , Lizenzen Alcon +2,2 Mio. Erhaltene Anzahlungen -1,0 Mio., CZM VG: Erhöhung "erhaltene Anzahlungen" und Lohnsteuerverbindlichkeiten zum 31.12. (+0,6 Mio.) CZM Inc: Service-RST (+0,5 Mio.), abgegrenzter Service-Ertrag (+0,4 Mio.) CZM Japan: Bonuszahlung Dez 11 (+0,4 Mio.), Kundenvorauszahlungen OPMI Lumera + Vario (+0,5 Mio.), U-Anteil soziale Sicherheit (+0,2 Mio.) CZM Spanien: abgegrenter Ertrag (+0,3 Mio.) | D14: =(2+2.2-1+0.6+0.5+0.4+0.4+0.5+0.2+0.3)*1000 -> 6100
